[Event "Titled Tuesday Blitz February 21 Early 2023"]
[White "Carrasco Miranda, Andres"]
[Black "Kohler, Aran"]
[WhiteFideId "3405990"]
[BlackFideId "1002856"]
[WhiteElo "2240"]
[BlackElo "2010"]
[Result "1-0"]
[Round "11"]
[TimeControl "180+2"]
[Date "2023.02.21"]
[WhiteClock "0:01:30"]
[BlackClock "0:00:24"]

1. d4 {[%clk 0:03:00]}  Nf6 {[%clk 0:02:58]} 2. c4 {[%clk 0:03:01]}  c5 {[%clk 0:02:58]} 3. d5 {[%clk 0:02:59]}  e6 {[%clk 0:02:58]} 4. Nc3 {[%clk 0:02:59]}  exd5 {[%clk 0:02:58]} 5. cxd5 {[%clk 0:03:00]}  d6 {[%clk 0:02:59]} 6. e4 {[%clk 0:03:01]}  g6 {[%clk 0:02:59]} 7. h3 {[%clk 0:03:01]}  Bg7 {[%clk 0:02:59]} 8. Bd3 {[%clk 0:03:02]}  O-O {[%clk 0:02:58]} 9. Bg5 {[%clk 0:03:03]}  h6 {[%clk 0:02:52]} 10. Be3 {[%clk 0:03:01]}  a6 {[%clk 0:02:50]} 11. a4 {[%clk 0:03:01]}  Re8 {[%clk 0:02:49]} 12. Nf3 {[%clk 0:03:00]}  Nbd7 {[%clk 0:02:47]} 13. O-O {[%clk 0:02:59]}  Qc7 {[%clk 0:02:37]} 14. Re1 {[%clk 0:02:58]}  Kh7 {[%clk 0:02:30]} 15. Rb1 {[%clk 0:02:48]}  Rb8 {[%clk 0:02:28]} 16. Qd2 {[%clk 0:02:38]}  Ne5 {[%clk 0:02:24]} 17. Nxe5 {[%clk 0:02:37]}  Rxe5 {[%clk 0:02:23]} 18. Bf4 {[%clk 0:02:38]}  Re8 {[%clk 0:01:43]} 19. b4 {[%clk 0:02:33]}  c4 {[%clk 0:01:41]} 20. Bc2 {[%clk 0:02:33]}  Nd7 {[%clk 0:01:37]} 21. b5 {[%clk 0:02:21]}  Ne5 {[%clk 0:01:31]} 22. bxa6 {[%clk 0:02:19]}  bxa6 {[%clk 0:01:31]} 23. Rxb8 {[%clk 0:02:18]}  Qxb8 {[%clk 0:01:32]} 24. Rb1 {[%clk 0:02:15]}  Qc7 {[%clk 0:01:31]} 25. Ne2 {[%clk 0:01:59]}  g5 {[%clk 0:01:29]} 26. Bg3 {[%clk 0:01:58]}  Bxh3 {[%clk 0:01:18]} 27. Bxe5 {[%clk 0:01:53]}  Bxe5 {[%clk 0:01:15]} 28. gxh3 {[%clk 0:01:52]}  c3 {[%clk 0:01:14]} 29. Qd3 {[%clk 0:01:48]}  Rb8 {[%clk 0:00:58]} 30. Rxb8 {[%clk 0:01:48]}  Qxb8 {[%clk 0:00:58]} 31. Qxa6 {[%clk 0:01:44]}  Qb2 {[%clk 0:00:58]} 32. Qd3 {[%clk 0:01:43]}  Qa1+ {[%clk 0:00:58]} 33. Kg2 {[%clk 0:01:43]}  Kg6 {[%clk 0:00:53]} 34. Ng1 {[%clk 0:01:40]}  Qc1 {[%clk 0:00:39]} 35. Nf3 {[%clk 0:01:39]}  Qf4 {[%clk 0:00:39]} 36. Nxe5+ {[%clk 0:01:39]}  Qxe5 {[%clk 0:00:39]} 37. a5 {[%clk 0:01:39]}  Kg7 {[%clk 0:00:26]} 38. a6 {[%clk 0:01:38]}  Qe7 {[%clk 0:00:26]} 39. e5 {[%clk 0:01:35]}  dxe5 {[%clk 0:00:24]} 40. Qh7+ {[%clk 0:01:30]} 1-0


[Site "https://www.chess.com"]

[Event "Titled Tuesday Blitz February 21 Early 2023"]
[White "Decoster, Frederic"]
[Black "Krzywda, Andrzej"]
[WhiteFideId "204269"]
[BlackFideId "1114565"]
[WhiteElo "2301"]
[BlackElo "2223"]
[Result "1/2-1/2"]
[Round "11"]
[TimeControl "180+2"]
[Date "2023.02.21"]
[WhiteClock "0:00:05"]
[BlackClock "0:00:09"]

1. e4 {[%clk 0:03:00]}  c5 {[%clk 0:03:00]} 2. Nf3 {[%clk 0:03:00]}  e6 {[%clk 0:03:00]} 3. d4 {[%clk 0:03:00]}  cxd4 {[%clk 0:03:01]} 4. Nxd4 {[%clk 0:03:01]}  Nc6 {[%clk 0:03:01]} 5. Nc3 {[%clk 0:03:00]}  Qc7 {[%clk 0:03:01]} 6. Be3 {[%clk 0:02:56]}  Nf6 {[%clk 0:02:58]} 7. f4 {[%clk 0:02:31]}  d6 {[%clk 0:02:54]} 8. Qf3 {[%clk 0:02:17]}  Be7 {[%clk 0:02:48]} 9. O-O-O {[%clk 0:02:07]}  O-O {[%clk 0:02:43]} 10. Nxc6 {[%clk 0:01:57]}  Qxc6 {[%clk 0:02:33]} 11. g4 {[%clk 0:01:54]}  a6 {[%clk 0:02:26]} 12. g5 {[%clk 0:01:51]}  Nd7 {[%clk 0:02:27]} 13. h4 {[%clk 0:01:48]}  Re8 {[%clk 0:02:27]} 14. h5 {[%clk 0:01:39]}  Bf8 {[%clk 0:02:25]} 15. Kb1 {[%clk 0:01:21]}  b5 {[%clk 0:02:22]} 16. Bd3 {[%clk 0:01:19]}  Bb7 {[%clk 0:02:21]} 17. Ne2 {[%clk 0:01:11]}  d5 {[%clk 0:01:53]} 18. e5 {[%clk 0:01:07]}  d4 {[%clk 0:01:48]} 19. Qxc6 {[%clk 0:00:47]}  Bxc6 {[%clk 0:01:48]} 20. Nxd4 {[%clk 0:00:48]}  Bxh1 {[%clk 0:01:47]} 21. Rxh1 {[%clk 0:00:49]}  Nc5 {[%clk 0:01:42]} 22. Be2 {[%clk 0:00:43]}  Rac8 {[%clk 0:01:39]} 23. Bf3 {[%clk 0:00:39]}  Rc7 {[%clk 0:01:23]} 24. a3 {[%clk 0:00:37]}  Rec8 {[%clk 0:01:23]} 25. Rg1 {[%clk 0:00:34]}  g6 {[%clk 0:01:19]} 26. h6 {[%clk 0:00:32]}  Na4 {[%clk 0:01:06]} 27. Be4 {[%clk 0:00:29]}  Bc5 {[%clk 0:01:05]} 28. c3 {[%clk 0:00:28]}  Nb6 {[%clk 0:01:04]} 29. Rc1 {[%clk 0:00:19]}  Nc4 {[%clk 0:01:04]} 30. Re1 {[%clk 0:00:17]}  Nxe3 {[%clk 0:01:01]} 31. Rxe3 {[%clk 0:00:18]}  Bxd4 {[%clk 0:00:57]} 32. cxd4 {[%clk 0:00:18]}  Rc4 {[%clk 0:00:54]} 33. Bb7 {[%clk 0:00:18]}  Rd8 {[%clk 0:00:44]} 34. Bxa6 {[%clk 0:00:18]}  Rcxd4 {[%clk 0:00:44]} 35. Bxb5 {[%clk 0:00:18]}  Rxf4 {[%clk 0:00:44]} 36. a4 {[%clk 0:00:18]}  Rb4 {[%clk 0:00:33]} 37. Re2 {[%clk 0:00:16]}  Kf8 {[%clk 0:00:33]} 38. Ka2 {[%clk 0:00:16]}  Ke7 {[%clk 0:00:33]} 39. Ka3 {[%clk 0:00:16]}  Rg4 {[%clk 0:00:33]} 40. b3 {[%clk 0:00:15]}  Rxg5 {[%clk 0:00:33]} 41. a5 {[%clk 0:00:14]}  Rg1 {[%clk 0:00:34]} 42. a6 {[%clk 0:00:13]}  g5 {[%clk 0:00:33]} 43. Kb4 {[%clk 0:00:10]}  g4 {[%clk 0:00:33]} 44. Bc6 {[%clk 0:00:10]}  Ra1 {[%clk 0:00:32]} 45. Bb7 {[%clk 0:00:10]}  g3 {[%clk 0:00:31]} 46. Kb5 {[%clk 0:00:11]}  Rd3 {[%clk 0:00:22]} 47. b4 {[%clk 0:00:11]}  Rda3 {[%clk 0:00:21]} 48. Kb6 {[%clk 0:00:10]}  f5 {[%clk 0:00:22]} 49. exf6+ {[%clk 0:00:10]}  Kxf6 {[%clk 0:00:22]} 50. b5 {[%clk 0:00:11]}  e5 {[%clk 0:00:22]} 51. Be4 {[%clk 0:00:09]}  Kg5 {[%clk 0:00:21]} 52. Bxh7 {[%clk 0:00:09]}  Kxh6 {[%clk 0:00:21]} 53. Be4 {[%clk 0:00:08]}  Kg5 {[%clk 0:00:21]} 54. Bc6 {[%clk 0:00:07]}  Kf4 {[%clk 0:00:21]} 55. Kc7 {[%clk 0:00:06]}  R1a2 {[%clk 0:00:15]} 56. Re1 {[%clk 0:00:05]}  g2 {[%clk 0:00:14]} 57. Re4+ {[%clk 0:00:04]}  Kf5 {[%clk 0:00:14]} 58. Re1 {[%clk 0:00:04]}  Ra1 {[%clk 0:00:14]} 59. Rxa1 {[%clk 0:00:04]}  Rxa1 {[%clk 0:00:15]} 60. Bxg2 {[%clk 0:00:04]}  e4 {[%clk 0:00:16]} 61. Bxe4+ {[%clk 0:00:04]}  Kxe4 {[%clk 0:00:16]} 62. Kb7 {[%clk 0:00:04]}  Kd5 {[%clk 0:00:16]} 63. b6 {[%clk 0:00:05]}  Kc5 {[%clk 0:00:10]} 64. a7 {[%clk 0:00:05]}  Kb5 {[%clk 0:00:09]} 65. a8=Q {[%clk 0:00:04]}  Rxa8 {[%clk 0:00:09]} 66. Kxa8 {[%clk 0:00:05]}  Kxb6 {[%clk 0:00:09]} 1/2-1/2


[Site "https://www.chess.com"]

[Event "Titled Tuesday Blitz February 21 Early 2023"]
[White "Uzcategui Rodriguez, Alejandro"]
[Black "Osuna Vega, Enrique"]
[WhiteFideId "3903400"]
[BlackFideId "2219549"]
[WhiteElo "2255"]
[BlackElo "2061"]
[Result "1-0"]
[Round "11"]
[TimeControl "180+2"]
[Date "2023.02.21"]
[WhiteClock "0:01:54"]
[BlackClock "0:00:42"]

1. e4 {[%clk 0:02:56]}  d6 {[%clk 0:02:59]} 2. d4 {[%clk 0:02:54]}  Nf6 {[%clk 0:02:59]} 3. Nc3 {[%clk 0:02:51]}  e5 {[%clk 0:02:59]} 4. Nf3 {[%clk 0:02:51]}  Nbd7 {[%clk 0:02:59]} 5. g4 {[%clk 0:02:46]}  Nxg4 {[%clk 0:02:55]} 6. Rg1 {[%clk 0:02:46]}  Ngf6 {[%clk 0:02:55]} 7. Bc4 {[%clk 0:02:44]}  exd4 {[%clk 0:02:49]} 8. Qxd4 {[%clk 0:02:38]}  c6 {[%clk 0:02:49]} 9. Be3 {[%clk 0:02:18]}  b5 {[%clk 0:02:18]} 10. Bb3 {[%clk 0:02:08]}  c5 {[%clk 0:02:12]} 11. Bxf7+ {[%clk 0:02:04]}  Kxf7 {[%clk 0:02:10]} 12. Ng5+ {[%clk 0:02:05]}  Kg8 {[%clk 0:01:59]} 13. Qd3 {[%clk 0:02:00]}  c4 {[%clk 0:01:46]} 14. Qd4 {[%clk 0:02:00]}  a6 {[%clk 0:01:35]} 15. Nd5 {[%clk 0:01:58]}  h6 {[%clk 0:00:42]} 16. Ne6 {[%clk 0:01:54]}  Qe7 {[%clk 0:00:42]} 17. Nxe7+ {[%clk 0:01:54]} 1-0


[Site "https://www.chess.com"]

[Event "Titled Tuesday Blitz February 21 Early 2023"]
[White "Ciuffoletti, Paolo"]
[Black "Womacka, Mathias"]
[WhiteFideId "807630"]
[BlackFideId "4611390"]
[WhiteElo "2106"]
[BlackElo "2396"]
[Result "0-1"]
[Round "11"]
[TimeControl "180+2"]
[Date "2023.02.21"]
[WhiteClock "0:01:20"]
[BlackClock "0:00:31"]

1. e4 {[%clk 0:03:00]}  c5 {[%clk 0:00:48]} 2. d4 {[%clk 0:02:53]}  cxd4 {[%clk 0:00:46]} 3. c3 {[%clk 0:02:52]}  dxc3 {[%clk 0:00:46]} 4. Nxc3 {[%clk 0:02:52]}  Nc6 {[%clk 0:00:46]} 5. Nf3 {[%clk 0:02:52]}  d6 {[%clk 0:00:47]} 6. Bc4 {[%clk 0:02:52]}  a6 {[%clk 0:00:47]} 7. O-O {[%clk 0:02:49]}  Nf6 {[%clk 0:00:47]} 8. h3 {[%clk 0:02:48]}  e6 {[%clk 0:00:47]} 9. Qe2 {[%clk 0:02:48]}  Be7 {[%clk 0:00:47]} 10. Rd1 {[%clk 0:02:48]}  Qc7 {[%clk 0:00:40]} 11. Bf4 {[%clk 0:02:47]}  Ne5 {[%clk 0:00:36]} 12. Bxe5 {[%clk 0:02:25]}  dxe5 {[%clk 0:00:37]} 13. Rac1 {[%clk 0:02:24]}  Qb8 {[%clk 0:00:33]} 14. Bb5+ {[%clk 0:01:30]}  axb5 {[%clk 0:00:32]} 15. Qxb5+ {[%clk 0:01:28]}  Bd7 {[%clk 0:00:32]} 16. Rxd7 {[%clk 0:01:21]}  Nxd7 {[%clk 0:00:33]} 17. Nxe5 {[%clk 0:01:20]}  Qxe5 {[%clk 0:00:31]} 0-1


[Site "https://www.chess.com"]

[Event "Titled Tuesday Blitz February 21 Early 2023"]
[White "Fajdetic, Hrvoje"]
[Black "kiwibobo"]
[WhiteFideId "14501945"]
[WhiteElo "2151"]
[BlackElo "2140"]
[Result "0-1"]
[Round "11"]
[TimeControl "180+2"]
[Date "2023.02.21"]
[WhiteClock "0:00:11"]
[BlackClock "0:00:38"]

1. f4 {[%clk 0:02:52]}  Nf6 {[%clk 0:02:59]} 2. d3 {[%clk 0:02:50]}  g6 {[%clk 0:03:00]} 3. e4 {[%clk 0:02:50]}  Bg7 {[%clk 0:03:00]} 4. Nf3 {[%clk 0:02:51]}  O-O {[%clk 0:03:00]} 5. Be2 {[%clk 0:02:51]}  d6 {[%clk 0:03:01]} 6. O-O {[%clk 0:02:51]}  Nc6 {[%clk 0:03:01]} 7. Qe1 {[%clk 0:02:51]}  e5 {[%clk 0:03:02]} 8. Qh4 {[%clk 0:02:50]}  Bd7 {[%clk 0:02:42]} 9. fxe5 {[%clk 0:02:42]}  dxe5 {[%clk 0:02:39]} 10. Bh6 {[%clk 0:02:41]}  Bxh6 {[%clk 0:02:28]} 11. Qxh6 {[%clk 0:02:42]}  Ng4 {[%clk 0:02:29]} 12. Qd2 {[%clk 0:02:40]}  Qe7 {[%clk 0:02:28]} 13. h3 {[%clk 0:02:30]}  Qc5+ {[%clk 0:02:26]} 14. Kh1 {[%clk 0:02:03]}  Ne3 {[%clk 0:02:24]} 15. Rc1 {[%clk 0:01:54]}  f5 {[%clk 0:02:14]} 16. Nc3 {[%clk 0:01:50]}  f4 {[%clk 0:02:13]} 17. a3 {[%clk 0:01:36]}  Nd4 {[%clk 0:02:13]} 18. Nxd4 {[%clk 0:01:33]}  exd4 {[%clk 0:02:07]} 19. Nd1 {[%clk 0:01:31]}  Qg5 {[%clk 0:02:04]} 20. Bf3 {[%clk 0:01:29]}  Qg3 {[%clk 0:01:50]} 21. Qf2 {[%clk 0:01:20]}  Qg5 {[%clk 0:01:36]} 22. c3 {[%clk 0:01:14]}  c5 {[%clk 0:01:34]} 23. b4 {[%clk 0:01:04]}  b6 {[%clk 0:01:27]} 24. bxc5 {[%clk 0:00:54]}  bxc5 {[%clk 0:01:27]} 25. cxd4 {[%clk 0:00:54]}  cxd4 {[%clk 0:01:27]} 26. Qb2 {[%clk 0:00:43]}  Qg3 {[%clk 0:01:24]} 27. Qxd4 {[%clk 0:00:30]}  Nf1 {[%clk 0:00:42]} 28. Qg1 {[%clk 0:00:20]}  Ne3 {[%clk 0:00:38]} 29. Nxe3 {[%clk 0:00:20]}  fxe3 {[%clk 0:00:38]} 30. Qxe3 {[%clk 0:00:19]}  Bxh3 {[%clk 0:00:39]} 31. Qe1 {[%clk 0:00:14]}  Rxf3 {[%clk 0:00:38]} 32. gxf3 {[%clk 0:00:12]}  Qxf3+ {[%clk 0:00:37]} 33. Kg1 {[%clk 0:00:11]}  Qg2# {[%clk 0:00:38]} 0-1


[Site "https://www.chess.com"]

[Event "Titled Tuesday Blitz February 21 Early 2023"]
[White "Kiseljova, Marya"]
[Black "Zaichenko, Daria"]
[WhiteFideId "4155009"]
[BlackFideId "4197453"]
[WhiteElo "2031"]
[BlackElo "2104"]
[Result "1-0"]
[Round "11"]
[TimeControl "180+2"]
[Date "2023.02.21"]
[WhiteClock "0:00:17"]
[BlackClock "0:00:05"]

1. d4 {[%clk 0:03:00]}  d5 {[%clk 0:02:59]} 2. c4 {[%clk 0:02:59]}  e6 {[%clk 0:02:58]} 3. Nf3 {[%clk 0:02:59]}  Nf6 {[%clk 0:02:56]} 4. g3 {[%clk 0:02:59]}  Be7 {[%clk 0:02:56]} 5. Bg2 {[%clk 0:02:59]}  O-O {[%clk 0:02:56]} 6. O-O {[%clk 0:03:00]}  dxc4 {[%clk 0:02:57]} 7. Qa4 {[%clk 0:02:55]}  a6 {[%clk 0:02:48]} 8. Qxc4 {[%clk 0:02:54]}  b5 {[%clk 0:02:48]} 9. Qb3 {[%clk 0:02:52]}  Bb7 {[%clk 0:02:48]} 10. Bf4 {[%clk 0:02:47]}  Nc6 {[%clk 0:02:44]} 11. Rd1 {[%clk 0:02:32]}  Rc8 {[%clk 0:02:38]} 12. Nc3 {[%clk 0:02:25]}  Na5 {[%clk 0:02:35]} 13. Qc2 {[%clk 0:02:22]}  Nd5 {[%clk 0:02:29]} 14. Nxd5 {[%clk 0:02:19]}  exd5 {[%clk 0:02:22]} 15. a3 {[%clk 0:02:13]}  c5 {[%clk 0:02:20]} 16. dxc5 {[%clk 0:02:06]}  Bxc5 {[%clk 0:02:19]} 17. Qf5 {[%clk 0:01:57]}  Nc4 {[%clk 0:02:07]} 18. b4 {[%clk 0:01:44]}  Ba7 {[%clk 0:02:00]} 19. Ne5 {[%clk 0:01:27]}  g6 {[%clk 0:01:39]} 20. Qd3 {[%clk 0:01:13]}  Nb2 {[%clk 0:01:36]} 21. Qd2 {[%clk 0:01:04]}  Nxd1 {[%clk 0:01:35]} 22. Rxd1 {[%clk 0:01:05]}  Qe7 {[%clk 0:01:10]} 23. Ng4 {[%clk 0:00:58]}  Kh8 {[%clk 0:00:57]} 24. Qb2+ {[%clk 0:00:40]}  f6 {[%clk 0:00:56]} 25. Bh6 {[%clk 0:00:39]}  Rf7 {[%clk 0:00:54]} 26. Bxd5 {[%clk 0:00:39]}  Bxd5 {[%clk 0:00:53]} 27. Rxd5 {[%clk 0:00:38]}  Qe6 {[%clk 0:00:41]} 28. Qd2 {[%clk 0:00:36]}  Bb6 {[%clk 0:00:19]} 29. h3 {[%clk 0:00:31]}  Bc7 {[%clk 0:00:16]} 30. Rc5 {[%clk 0:00:24]}  f5 {[%clk 0:00:15]} 31. Ne3 {[%clk 0:00:23]}  Rd7 {[%clk 0:00:13]} 32. Qb2+ {[%clk 0:00:23]}  Kg8 {[%clk 0:00:13]} 33. Qc2 {[%clk 0:00:20]}  Qd6 {[%clk 0:00:11]} 34. Nd5 {[%clk 0:00:20]}  Qe5 {[%clk 0:00:09]} 35. Nxc7 {[%clk 0:00:18]}  Rdxc7 {[%clk 0:00:08]} 36. Qb3+ {[%clk 0:00:18]}  Kh8 {[%clk 0:00:05]} 37. Rxe5 {[%clk 0:00:18]}  Rc1+ {[%clk 0:00:05]} 38. Bxc1 {[%clk 0:00:17]} 1-0


[Site "https://www.chess.com"]

[Event "Titled Tuesday Blitz February 21 Early 2023"]
[White "lisjakzlatko1"]
[Black "Sarkar, Justin"]
[BlackFideId "2010011"]
[WhiteElo "2162"]
[BlackElo "2309"]
[Result "0-1"]
[Round "11"]
[TimeControl "180+2"]
[Date "2023.02.21"]
[WhiteClock "0:00:01"]
[BlackClock "0:00:06"]

1. e4 {[%clk 0:02:56]}  e5 {[%clk 0:02:49]} 2. Nf3 {[%clk 0:02:54]}  Nc6 {[%clk 0:02:49]} 3. Bb5 {[%clk 0:02:55]}  a6 {[%clk 0:02:48]} 4. Bxc6 {[%clk 0:02:54]}  dxc6 {[%clk 0:02:47]} 5. O-O {[%clk 0:02:55]}  Qf6 {[%clk 0:02:45]} 6. d4 {[%clk 0:02:50]}  exd4 {[%clk 0:02:44]} 7. Qxd4 {[%clk 0:02:49]}  Qxd4 {[%clk 0:02:29]} 8. Nxd4 {[%clk 0:02:48]}  Bd6 {[%clk 0:02:26]} 9. Be3 {[%clk 0:02:42]}  Ne7 {[%clk 0:02:25]} 10. f4 {[%clk 0:02:33]}  f5 {[%clk 0:02:07]} 11. e5 {[%clk 0:02:30]}  Bc5 {[%clk 0:02:05]} 12. Nxf5 {[%clk 0:02:21]}  Bxf5 {[%clk 0:01:55]} 13. Bxc5 {[%clk 0:02:20]}  Bxc2 {[%clk 0:01:54]} 14. Nc3 {[%clk 0:01:50]}  b6 {[%clk 0:01:49]} 15. Bxe7 {[%clk 0:01:39]}  Kxe7 {[%clk 0:01:48]} 16. Rac1 {[%clk 0:01:31]}  Bf5 {[%clk 0:01:43]} 17. Ne2 {[%clk 0:01:11]}  c5 {[%clk 0:01:22]} 18. Ng3 {[%clk 0:01:00]}  Bd3 {[%clk 0:01:14]} 19. Rfd1 {[%clk 0:00:52]}  c4 {[%clk 0:01:14]} 20. b3 {[%clk 0:00:50]}  b5 {[%clk 0:01:13]} 21. Nf1 {[%clk 0:00:45]}  Rad8 {[%clk 0:01:06]} 22. Ne3 {[%clk 0:00:43]}  Rhf8 {[%clk 0:00:55]} 23. g3 {[%clk 0:00:37]}  Rd4 {[%clk 0:00:46]} 24. Rd2 {[%clk 0:00:17]}  Rfd8 {[%clk 0:00:43]} 25. Kf2 {[%clk 0:00:14]}  Ke6 {[%clk 0:00:39]} 26. bxc4 {[%clk 0:00:11]}  bxc4 {[%clk 0:00:35]} 27. Re1 {[%clk 0:00:08]}  c3 {[%clk 0:00:31]} 28. Rdd1 {[%clk 0:00:07]}  g6 {[%clk 0:00:26]} 29. Rc1 {[%clk 0:00:06]}  Ra4 {[%clk 0:00:19]} 30. Rxc3 {[%clk 0:00:05]}  Rxa2+ {[%clk 0:00:19]} 31. Kg1 {[%clk 0:00:04]}  Be4 {[%clk 0:00:15]} 32. Rxc7 {[%clk 0:00:03]}  Rd7 {[%clk 0:00:12]} 33. Rc5 {[%clk 0:00:02]}  Rdd2 {[%clk 0:00:09]} 34. h4 {[%clk 0:00:01]}  a5 {[%clk 0:00:06]} 0-1


[Site "https://www.chess.com"]

[Event "Titled Tuesday Blitz February 21 Early 2023"]
[White "Buganca, Luiz Henrique Da Silva"]
[Black "Sabar, Ethmane Daouda"]
[WhiteFideId "2182289"]
[BlackFideId "19600097"]
[WhiteElo "1920"]
[BlackElo "2040"]
[Result "1-0"]
[Round "11"]
[TimeControl "180+2"]
[Date "2023.02.21"]
[WhiteClock "0:01:34"]
[BlackClock "0:00:12"]

1. d4 {[%clk 0:03:00]}  d5 {[%clk 0:02:59]} 2. c4 {[%clk 0:03:01]}  e5 {[%clk 0:02:59]} 3. cxd5 {[%clk 0:03:00]}  Qxd5 {[%clk 0:02:58]} 4. dxe5 {[%clk 0:03:01]}  Qxd1+ {[%clk 0:02:39]} 5. Kxd1 {[%clk 0:03:01]}  Nc6 {[%clk 0:02:35]} 6. Nf3 {[%clk 0:03:02]}  Bf5 {[%clk 0:02:30]} 7. Bd2 {[%clk 0:02:58]}  O-O-O {[%clk 0:02:31]} 8. a3 {[%clk 0:02:58]}  f6 {[%clk 0:02:22]} 9. exf6 {[%clk 0:02:54]}  Nxf6 {[%clk 0:02:23]} 10. Nc3 {[%clk 0:02:54]}  Ng4 {[%clk 0:02:10]} 11. Ke1 {[%clk 0:02:53]}  Bc5 {[%clk 0:02:10]} 12. e3 {[%clk 0:02:52]}  Rhe8 {[%clk 0:02:06]} 13. h3 {[%clk 0:02:50]}  Nge5 {[%clk 0:02:05]} 14. Be2 {[%clk 0:02:49]}  Nd3+ {[%clk 0:02:03]} 15. Bxd3 {[%clk 0:02:49]}  Bxd3 {[%clk 0:02:03]} 16. Rc1 {[%clk 0:02:46]}  a5 {[%clk 0:01:41]} 17. Ne2 {[%clk 0:02:44]}  Bb6 {[%clk 0:01:35]} 18. Bc3 {[%clk 0:02:41]}  g6 {[%clk 0:01:24]} 19. Nf4 {[%clk 0:02:39]}  Ba6 {[%clk 0:01:22]} 20. Ng5 {[%clk 0:02:32]}  Rd7 {[%clk 0:01:15]} 21. Rd1 {[%clk 0:02:20]}  Rde7 {[%clk 0:01:07]} 22. Nd5 {[%clk 0:02:18]}  Rd7 {[%clk 0:00:54]} 23. Nxb6+ {[%clk 0:02:18]}  cxb6 {[%clk 0:00:55]} 24. Rxd7 {[%clk 0:02:18]}  Kxd7 {[%clk 0:00:55]} 25. Kd2 {[%clk 0:02:16]}  b5 {[%clk 0:00:53]} 26. Rd1 {[%clk 0:02:15]}  b4 {[%clk 0:00:53]} 27. Kc2+ {[%clk 0:02:11]}  Kc8 {[%clk 0:00:47]} 28. axb4 {[%clk 0:02:11]}  axb4 {[%clk 0:00:46]} 29. Bd4 {[%clk 0:02:11]}  h6 {[%clk 0:00:39]} 30. Nf7 {[%clk 0:02:11]}  Re6 {[%clk 0:00:33]} 31. Nxh6 {[%clk 0:02:06]}  Na5 {[%clk 0:00:29]} 32. b3 {[%clk 0:01:45]}  b6 {[%clk 0:00:19]} 33. Kb2 {[%clk 0:01:44]}  Bb7 {[%clk 0:00:19]} 34. f3 {[%clk 0:01:42]}  Bd5 {[%clk 0:00:18]} 35. Rc1+ {[%clk 0:01:39]}  Kb7 {[%clk 0:00:18]} 36. Nf7 {[%clk 0:01:36]}  Ka6 {[%clk 0:00:15]} 37. Nd8 {[%clk 0:01:35]}  Nxb3 {[%clk 0:00:14]} 38. Nxe6 {[%clk 0:01:34]}  Nxc1 {[%clk 0:00:14]} 39. Nc7+ {[%clk 0:01:34]}  Kb7 {[%clk 0:00:13]} 40. Nxd5 {[%clk 0:01:35]}  Ne2 {[%clk 0:00:12]} 41. Bxb6 {[%clk 0:01:34]} 1-0


[Site "https://www.chess.com"]

[Event "Titled Tuesday Blitz February 21 Early 2023"]
[White "Gamage, Wanshini Vidusama"]
[Black "Michalski, Olaf"]
[WhiteFideId "9953752"]
[BlackFideId "1106740"]
[WhiteElo "1089"]
[BlackElo "2273"]
[Result "1-0"]
[Round "11"]
[TimeControl "180+2"]
[Date "2023.02.21"]
[WhiteClock "0:00:34"]
[BlackClock "0:00:01"]

1. d4 {[%clk 0:03:00]}  d6 {[%clk 0:02:58]} 2. c4 {[%clk 0:02:57]}  g6 {[%clk 0:02:58]} 3. Nc3 {[%clk 0:02:57]}  Bg7 {[%clk 0:02:59]} 4. Nf3 {[%clk 0:02:57]}  Nc6 {[%clk 0:02:56]} 5. e4 {[%clk 0:02:56]}  Bg4 {[%clk 0:02:56]} 6. Be3 {[%clk 0:02:55]}  e5 {[%clk 0:02:55]} 7. dxe5 {[%clk 0:02:47]}  dxe5 {[%clk 0:02:35]} 8. Qxd8+ {[%clk 0:02:46]}  Rxd8 {[%clk 0:02:35]} 9. Nd5 {[%clk 0:02:44]}  Rd7 {[%clk 0:02:34]} 10. Nd2 {[%clk 0:02:34]}  Nd4 {[%clk 0:02:24]} 11. Rc1 {[%clk 0:02:22]}  c6 {[%clk 0:02:17]} 12. Nc3 {[%clk 0:02:17]}  Ne7 {[%clk 0:01:51]} 13. f3 {[%clk 0:02:10]}  Be6 {[%clk 0:01:51]} 14. b3 {[%clk 0:02:11]}  b6 {[%clk 0:01:43]} 15. Ne2 {[%clk 0:02:08]}  O-O {[%clk 0:01:38]} 16. Bxd4 {[%clk 0:02:02]}  exd4 {[%clk 0:01:37]} 17. Nf4 {[%clk 0:02:03]}  Bh6 {[%clk 0:01:20]} 18. Nxe6 {[%clk 0:01:45]}  fxe6 {[%clk 0:01:19]} 19. Bd3 {[%clk 0:01:46]}  c5 {[%clk 0:01:14]} 20. Ke2 {[%clk 0:01:45]}  Nc6 {[%clk 0:01:10]} 21. Rcf1 {[%clk 0:01:42]}  Be3 {[%clk 0:01:00]} 22. g3 {[%clk 0:01:36]}  e5 {[%clk 0:00:47]} 23. a3 {[%clk 0:01:30]}  Kf7 {[%clk 0:00:37]} 24. f4 {[%clk 0:01:23]}  Ke6 {[%clk 0:00:30]} 25. f5+ {[%clk 0:01:19]}  Ke7 {[%clk 0:00:19]} 26. Nf3 {[%clk 0:01:12]}  g5 {[%clk 0:00:11]} 27. h4 {[%clk 0:01:09]}  g4 {[%clk 0:00:11]} 28. Ng5 {[%clk 0:01:10]}  Kf6 {[%clk 0:00:04]} 29. Ne6 {[%clk 0:01:07]}  Rg8 {[%clk 0:00:04]} 30. h5 {[%clk 0:00:57]}  Nd8 {[%clk 0:00:04]} 31. Nxd8 {[%clk 0:00:56]}  Rdxd8 {[%clk 0:00:04]} 32. Rh4 {[%clk 0:00:54]}  Kg5 {[%clk 0:00:04]} 33. Kd1 {[%clk 0:00:49]}  h6 {[%clk 0:00:04]} 34. Kc2 {[%clk 0:00:49]}  Rb8 {[%clk 0:00:04]} 35. Be2 {[%clk 0:00:48]}  Kf6 {[%clk 0:00:02]} 36. Kd3 {[%clk 0:00:39]}  Rg5 {[%clk 0:00:02]} 37. b4 {[%clk 0:00:35]}  a6 {[%clk 0:00:01]} 38. Rb1 {[%clk 0:00:34]} 1-0


[Site "https://www.chess.com"]